bitfinex/quotes_BTCUSD_20230101
["timestamp","ask_amount","ask_price","bid_price","bid_amount"]
[1672598017198,1.31986403,16608.0,16607.0,1.01426665]
[1672598020975,1.31986403,16608.0,16607.0,1.01436102]
[1672598021488,1.31986403,16608.0,16607.0,1.01426665]
[1672598022329,1.31986403,16608.0,16607.0,1.01436102]
[1672598022557,1.28923334,16608.0,16607.0,1.01436102]
[1672598023976,1.28923334,16608.0,16607.0,0.31436102]
[1672598024245,1.28923334,16608.0,16607.0,0.31426665]
[1672598024488,0.66841134,16608.0,16607.0,0.31436102]
[1672598024776,0.66841134,16608.0,16607.0,0.31426665]
[1672598024997,0.66841134,16608.0,16607.0,1.01426665]
[1672598025748,1.28923334,16608.0,16607.0,1.01426665]
[1672598027703,0.66841134,16608.0,16607.0,1.01426665]
[1672598030862,0.66841134,16608.0,16607.0,0.31417458]
[1672598031329,1.28923334,16608.0,16607.0,0.3144527]
[1672598031623,1.28923334,16608.0,16607.0,0.31417458]
[1672598031861,1.28923334,16608.0,16607.0,1.01417458]
[1672598032108,0.66841134,16608.0,16607.0,1.0144527]
[1672598032883,0.66841134,16608.0,16607.0,1.01417458]
[1672598034427,0.66841134,16608.0,16607.0,1.0144527]
[1672598034670,0.66841134,16608.0,16607.0,1.01417458]
[1672598036338,0.66841134,16608.0,16607.0,1.0144527]
[1672598036820,0.66841134,16608.0,16607.0,1.01417458]
[1672598037845,0.66841134,16608.0,16607.0,0.31417458]
[1672598038124,1.28923334,16608.0,16607.0,0.31417458]
[1672598038906,1.28923334,16608.0,16607.0,1.01417458]
[1672598039152,0.66841134,16608.0,16607.0,1.01417458]
[1672598043409,0.66841134,16608.0,16607.0,1.0144527]
[1672598043663,0.66841134,16608.0,16607.0,1.01417458]
[1672598044903,0.66841134,16608.0,16607.0,0.31417458]
[1672598045919,0.66841134,16608.0,16607.0,1.01417458]
[1672598046389,0.66841134,16608.0,16607.0,1.0144527]
[1672598054473,0.66841134,16608.0,16607.0,1.01408633]
[1672598056680,0.05198984,16608.0,16607.0,1.48590101]
[1672598057423,0.59445495,16608.0,16607.0,1.48590101]
[1672598057959,0.59445495,16608.0,16607.0,1.48617913]
[1672598058711,0.59445495,16608.0,16607.0,1.01436445]
[1672598060395,0.59445495,16608.0,16607.0,1.48617913]
[1672598060897,0.59445495,16608.0,16607.0,1.01436445]
[1672598061832,0.59445495,16608.0,16607.0,3.00876008]
[1672598061861,0.05198984,16608.0,16607.0,3.00876008]
[1672598062111,0.95594044,16608.0,16607.0,4.3839589]
[1672598062360,0.68458294,16608.0,16607.0,4.0829089]
[1672598062847,1.13643981,16608.0,16607.0,4.0829089]
[1672598063100,0.8653322,16608.0,16607.0,4.0829089]
[1672598063883,0.68440841,16608.0,16607.0,4.0829089]
[1672598064138,0.68440841,16608.0,16607.0,3.62958208]
[1672598064412,0.04598984,16608.0,16607.0,3.97292172]
[1672598064641,0.04598984,16608.0,16607.0,4.07591952]
[1672598064885,0.04598984,16608.0,16607.0,4.28994952]
[1672598065150,0.04598984,16608.0,16607.0,4.06704972]
[1672598065418,0.04598984,16608.0,16607.0,3.98004972]
[1672598065668,0.04598984,16608.0,16607.0,4.14132067]
[1672598065903,0.04598984,16608.0,16607.0,3.81813484]
[1672598066147,0.04598984,16608.0,16607.0,3.95813484]
[1672598066406,0.04598984,16608.0,16607.0,4.42994952]
[1672598067152,0.04598984,16608.0,16607.0,4.28994952]
[1672598067403,0.04598984,16608.0,16607.0,4.42894952]
[1672598067649,0.04598984,16608.0,16607.0,4.28994952]
[1672598067908,0.04598984,16608.0,16607.0,4.42894952]
[1672598069691,0.04598984,16608.0,16607.0,4.99051562]
[1672598069941,0.04598984,16608.0,16607.0,4.42894952]
[1672598070183,0.04598984,16608.0,16607.0,4.42898952]
[1672598071955,0.04598984,16608.0,16607.0,4.99992857]
[1672598072201,0.04598984,16608.0,16607.0,3.72898952]
[1672598072716,0.04598984,16608.0,16607.0,4.42898952]
[1672598072984,0.04598984,16608.0,16607.0,5.05215333]
[1672598073469,0.04598984,16608.0,16607.0,4.42898952]
[1672598074718,0.04598984,16608.0,16607.0,4.9475221]
[1672598075442,0.04598984,16608.0,16607.0,4.52355378]
[1672598075696,0.04598984,16608.0,16607.0,3.99915208]
[1672598075945,0.04598984,16608.0,16607.0,4.57118254]
[1672598076191,0.04598984,16608.0,16607.0,3.99915208]
[1672598077497,0.04598984,16608.0,16607.0,4.42667403]
[1672598077997,1e-08,16608.0,16607.0,4.42667403]
[1672598078505,1e-08,16608.0,16607.0,3.72667403]
[1672598079499,0.11013454,16611.0,16607.0,4.42667403]
[1672598079746,0.11013454,16611.0,16608.0,1.48266736]
[1672598079992,0.11013454,16611.0,16610.0,0.5]
[1672598080234,0.11013454,16611.0,16610.0,2.67823236]
[1672598080726,0.11013454,16611.0,16610.0,3.37823236]
[1672598081193,0.11013454,16611.0,16610.0,3.52123236]
[1672598082940,0.11013454,16611.0,16610.0,4.03531975]
[1672598083179,0.11013454,16611.0,16610.0,4.0535907]
[1672598084175,0.42939939,16613.0,16611.0,1.11204572]
[1672598084455,0.42939939,16613.0,16612.0,1.824572]
[1672598084949,0.42939939,16613.0,16612.0,1.203948]
[1672598085408,0.42317061,16613.0,16612.0,1.903948]
[1672598086156,0.27093308,16613.0,16612.0,1.903948]
[1672598087911,0.27093308,16613.0,16612.0,1.90405142]
[1672598088661,0.27093308,16613.0,16612.0,1.20405142]
[1672598089412,0.72278995,16613.0,16612.0,1.20405142]
[1672598089663,0.27093308,16613.0,16612.0,1.90405142]
[1672598091640,0.72205059,16613.0,16612.0,1.90405142]
[1672598092200,0.81211548,16613.0,16612.0,1.90405142]
[1672598092946,1.08230934,16613.0,16612.0,1.90405142]
[1672598093215,0.81211548,16613.0,16612.0,1.90405142]
[1672598095510,0.45185687,16613.0,16612.0,1.90405142]
[1672598095775,0.45185687,16613.0,16612.0,1.20405142]
[1672598096588,0.45185687,16613.0,16612.0,1.90405142]
[1672598098397,0.54855775,16614.0,16612.0,1.90405142]
[1672598098677,0.45085611,16613.0,16612.0,2.37170094]
[1672598099402,1.04855775,16614.0,16612.0,2.37170094]
[1672598099706,0.54855775,16614.0,16612.0,2.37170094]
[1672598099894,0.45111523,16613.0,16612.0,2.37170094]
[1672598100147,0.45111523,16613.0,16612.0,2.67170094]
[1672598100649,0.45111523,16613.0,16612.0,2.37170094]
[1672598100892,0.45111523,16613.0,16612.0,2.68997189]
[1672598101140,0.45111523,16613.0,16612.0,2.38997189]
[1672598101393,0.54855775,16614.0,16612.0,3.15039037]
[1672598101661,0.54855775,16614.0,16612.0,2.85039037]
[1672598101907,0.54246511,16613.0,16612.0,2.85039037]
[1672598102187,0.54246511,16613.0,16612.0,2.38274085]
[1672598102407,0.54855775,16614.0,16612.0,2.85039037]
[1672598102652,0.54246511,16613.0,16612.0,2.85039037]
[1672598104135,0.54246511,16613.0,16612.0,3.15039037]
[1672598106140,0.54246511,16613.0,16612.0,2.15039037]
[1672598106403,0.54246511,16613.0,16612.0,2.4503039]
[1672598106647,0.54246511,16613.0,16612.0,1.68255096]
[1672598106906,0.54246511,16613.0,16612.0,2.38255096]
[1672598107145,0.61627244,16614.0,16612.0,2.38255096]
[1672598107467,0.54219361,16613.0,16612.0,2.85020048]
[1672598107691,1.07103556,16614.0,16612.0,1.92213248]
[1672598107948,1.07103556,16614.0,16612.0,1.30188753]
[1672598107949,0.61622456,16613.0,16612.0,1.30188753]
[1672598111202,0.61622456,16613.0,16612.0,1.30888753]
[1672598112930,0.00604476,16613.0,16612.0,1.77653705]
[1672598113173,0.00604476,16613.0,16612.0,1.30888753]
[1672598113421,0.00604476,16613.0,16612.0,1.30188753]
[1672598113672,0.00604476,16613.0,16612.0,1.30888753]
[1672598115442,0.00604476,16613.0,16612.0,1.30188753]
[1672598115682,0.00604476,16613.0,16612.0,1.30888753]
[1672598115928,0.00604476,16613.0,16612.0,1.30188753]
[1672598116175,0.00604476,16613.0,16612.0,1.30888753]
[1672598118058,0.6101798,16614.0,16612.0,1.30888753]
[1672598118307,0.6101798,16614.0,16612.0,1.77653705]
[1672598119076,0.6101798,16614.0,16612.0,1.76953705]
[1672598119322,0.6101798,16614.0,16612.0,1.77853705]
[1672598124121,0.6101798,16614.0,16612.0,1.07853705]
[1672598125651,0.6162946,16614.0,16612.0,1.07853705]
[1672598125895,0.6162946,16614.0,16612.0,1.77853705]
[1672598127381,0.6162946,16614.0,16612.0,1.77847673]
[1672598127871,0.54204915,16613.0,16612.0,1.77847673]
[1672598128131,0.54204915,16613.0,16612.0,1.31082721]
[1672598128390,0.6162946,16614.0,16612.0,1.31082721]
[1672598128644,0.6162946,16614.0,16612.0,1.77847673]
[1672598128908,0.6162946,16614.0,16612.0,1.76947673]
[1672598129162,0.6162946,16614.0,16612.0,1.77647673]
[1672598129406,0.6162946,16614.0,16612.0,1.76947673]
[1672598129658,0.6162946,16614.0,16612.0,2.38045073]
[1672598131766,0.6162946,16614.0,16612.0,1.68045073]
[1672598132047,0.6162946,16614.0,16612.0,2.38045073]
[1672598136091,0.54205575,16613.0,16612.0,2.38045073]
[1672598137100,0.54205575,16613.0,16612.0,2.37145073]
[1672598137338,0.54205575,16613.0,16612.0,2.37845073]
[1672598141428,0.54205575,16613.0,16612.0,2.37145073]
[1672598141945,0.54205575,16613.0,16612.0,2.37845073]
[1672598142189,0.54205575,16613.0,16612.0,1.67845073]
[1672598142958,0.54205575,16613.0,16612.0,1.67145073]
[1672598143205,0.54205575,16613.0,16612.0,1.67845073]
[1672598143452,0.54205575,16613.0,16612.0,2.37845073]
[1672598147637,0.54205575,16613.0,16612.0,2.37834875]
[1672598147877,0.6162946,16614.0,16612.0,2.37834875]
[1672598148123,0.54216585,16613.0,16612.0,2.37834875]
[1672598149384,0.54216585,16613.0,16612.0,1.67834875]
[1672598149628,0.54216585,16613.0,16612.0,1.20369923]
[1672598149892,1.16298785,16613.0,16612.0,1.21069923]
[1672598150142,0.54216585,16613.0,16612.0,1.90369923]
[1672598150357,0.54216585,16613.0,16612.0,1.91069923]
[1672598151364,0.54216585,16613.0,16612.0,2.37834875]
[1672598151640,0.54216585,16613.0,16612.0,2.37134875]
[1672598156223,0.54216585,16613.0,16612.0,1.67134875]
[1672598157231,0.54216585,16613.0,16612.0,2.37134875]
[1672598163303,0.54216585,16613.0,16612.0,1.67134875]
[1672598163535,0.620822,16613.0,16612.0,1.20369923]
[1672598164278,0.620822,16613.0,16612.0,1.90369923]
[1672598164659,1.07341384,16614.0,16612.0,1.90369923]
[1672598164880,0.620822,16613.0,16612.0,1.90369923]
[1672598165132,1.07345045,16614.0,16612.0,1.90369923]
[1672598165341,0.620822,16613.0,16612.0,1.90369923]
[1672598165492,1.07336826,16614.0,16612.0,1.90369923]
[1672598165705,0.6162946,16614.0,16612.0,2.37134875]
[1672598166243,0.5422035,16613.0,16612.0,2.37134875]
[1672598166477,1.07349053,16614.0,16612.0,1.90369923]
[1672598166705,0.620822,16613.0,16612.0,1.90369923]
[1672598166931,1.07345075,16614.0,16612.0,1.90369923]
[1672598167149,0.6162946,16614.0,16612.0,1.90369923]
[1672598167594,0.63235734,16613.0,16612.0,1.90369923]
[1672598169036,1.24253714,16613.0,16612.0,1.90369923]
[1672598169255,0.62171514,16613.0,16612.0,1.90369923]
[1672598169479,0.01153534,16613.0,16612.0,1.90369923]
[1672598169701,0.62171514,16613.0,16612.0,1.90369923]
[1672598169942,0.01153534,16613.0,16612.0,1.90369923]
[1672598170687,0.62171514,16613.0,16612.0,1.90369923]
[1672598170928,0.01153534,16613.0,16612.0,1.90369923]
[1672598171418,0.01153534,16613.0,16612.0,1.90361482]
[1672598171929,0.63235734,16613.0,16612.0,1.90361482]
[1672598172400,1.24253714,16613.0,16612.0,1.90361482]
[1672598172899,0.63235734,16613.0,16612.0,1.90361482]
[1672598173141,1.24253714,16613.0,16612.0,1.90361482]
[1672598173388,0.66256677,16613.0,16612.0,1.90361482]
[1672598174419,0.04165334,16613.0,16612.0,1.90361482]
[1672598174910,0.65183314,16613.0,16612.0,1.90361482]
[1672598175159,1.27265514,16613.0,16612.0,1.20361482]
[1672598176142,1.27265514,16613.0,16612.0,1.90361482]
[1672598177891,1.27265514,16613.0,16612.0,1.91061482]
[1672598181618,1.27883366,16613.0,16612.0,1.30864082]
[1672598182133,1.27883366,16613.0,16612.0,0.60864082]
[1672598182372,1.27883366,16613.0,16612.0,0.007]
[1672598182867,1.27883366,16613.0,16612.0,0.707]
[1672598183716,0.65801166,16613.0,16612.0,0.707]
[1672598184721,0.65801166,16613.0,16612.0,0.7]
[1672598184976,0.65801166,16613.0,16612.0,0.707]
[1672598185717,2.33158956,16613.0,16612.0,0.707]
[1672598185972,2.32334776,16613.0,16612.0,0.707]
[1672598186248,1.72140976,16613.0,16612.0,0.707]
[1672598186760,1.72757915,16613.0,16612.0,0.707]
[1672598187026,1.12564115,16613.0,16612.0,0.707]
[1672598194910,1.72757915,16613.0,16612.0,0.707]
[1672598196437,1.72757915,16613.0,16612.0,0.70692885]
[1672598201691,1.72757915,16613.0,16612.0,0.007]
[1672598202719,1.72757915,16613.0,16612.0,0.707]
[1672598204212,1.47757915,16613.0,16612.0,0.707]
[1672598204461,1.06510381,16613.0,16612.0,0.707]
[1672598205212,1.09599702,16613.0,16612.0,0.707]
[1672598208846,1.09599702,16613.0,16612.0,0.007]
[1672598209086,1.71687302,16613.0,16612.0,0.007]
[1672598209571,1.09599702,16613.0,16612.0,0.007]
[1672598209833,1.09599702,16613.0,16612.0,0.707]
[1672598215846,1.09599702,16613.0,16612.0,0.007]
[1672598216091,1.71687302,16613.0,16612.0,0.007]
[1672598216822,1.71687302,16613.0,16612.0,0.707]
[1672598217062,1.09599702,16613.0,16612.0,0.707]
[1672598218329,1.09317909,16613.0,16612.0,0.707]
[1672598219577,1.71405509,16613.0,16612.0,0.707]
[1672598220828,2.31599309,16613.0,16612.0,0.707]
[1672598221431,2.31599309,16613.0,16612.0,0.007]
[1672598222879,3.20432381,16613.0,16612.0,0.007]
[1672598224611,2.31599309,16613.0,16612.0,0.007]
[1672598225111,3.20432381,16613.0,16612.0,0.007]
[1672598225489,0.5,16612.0,16610.0,0.61599767]
[1672598225736,0.96537444,16612.0,16610.0,0.61599767]
[1672598225952,0.620876,16611.0,16610.0,0.61599767]
[1672598226202,0.96537444,16612.0,16610.0,0.61599767]
[1672598226440,0.5,16612.0,16610.0,0.61599767]
[1672598226683,0.61007096,16611.0,16610.0,0.61599767]
[1672598227434,0.61007096,16611.0,16610.0,0.61590673]
[1672598227686,0.62184041,16611.0,16610.0,0.61590673]
[1672598240064,0.01176945,16611.0,16610.0,0.61590673]
[1672598240825,0.62184041,16611.0,16610.0,0.61590673]
[1672598242931,0.01176945,16611.0,16610.0,0.61590673]
[1672598243424,0.62184041,16611.0,16610.0,0.61590673]
[1672598243749,0.62184041,16611.0,16610.0,0.61689932]
[1672598245122,0.01176945,16611.0,16610.0,0.61689932]
[1672598245389,0.62184041,16611.0,16610.0,0.61689932]
[1672598245905,0.01176945,16611.0,16610.0,0.61689932]
[1672598246153,0.62184041,16611.0,16610.0,0.61689932]
[1672598247101,0.01176945,16611.0,16610.0,0.61689932]
[1672598247608,0.62184041,16611.0,16610.0,0.61689932]
[1672598248381,1.24271641,16611.0,16610.0,0.61689932]
[1672598248867,1.24271641,16611.0,16610.0,0.61583286]
[1672598250638,1.24271641,16611.0,16609.0,1.072473]
[1672598250887,0.149108,16610.0,16609.0,1.072473]
[1672598251400,0.62797824,16611.0,16609.0,0.602073]
[1672598251641,0.620876,16610.0,16609.0,0.602073]
[1672598252402,0.62797824,16611.0,16609.0,0.60306565]
[1672598253393,0.62790038,16611.0,16609.0,0.60306565]
[1672598253637,0.620876,16610.0,16609.0,0.60306565]
[1672598254137,1.12790038,16611.0,16609.0,0.60306565]
[1672598254659,0.620876,16610.0,16609.0,0.60306565]
[1672598254906,0.620876,16610.0,16609.0,0.61006565]
[1672598255192,0.620876,16610.0,16609.0,0.60306565]
[1672598255452,0.620876,16610.0,16609.0,0.609073]
[1672598255700,0.620876,16610.0,16609.0,0.602073]
[1672598256678,1.2431706,16610.0,16609.0,0.602073]
[1672598258661,1.24957842,16610.0,16608.0,1.22315261]
[1672598258948,0.54213166,16609.0,16608.0,1.82524461]
[1672598262675,0.53713166,16609.0,16608.0,1.82524461]
[1672598278525,0.53713166,16609.0,16608.0,2.44612061]
[1672598280583,0.53713166,16609.0,16608.0,1.82524461]
[1672598285730,0.53713166,16609.0,16608.0,2.52524461]
[1672598287195,0.62870242,16610.0,16608.0,2.52524461]
[1672598287648,0.620876,16609.0,16608.0,2.52513825]
[1672598287863,0.61647878,16610.0,16608.0,2.52513825]
[1672598288327,0.620876,16609.0,16608.0,2.52513825]
[1672598288543,0.61647878,16610.0,16608.0,2.52513825]
[1672598288993,0.620876,16609.0,16608.0,2.52513825]
[1672598289234,0.61647878,16610.0,16608.0,2.52513825]
[1672598290000,0.620876,16609.0,16608.0,2.52513825]
[1672598290250,0.61647878,16610.0,16608.0,2.52513825]
[1672598290986,0.620876,16609.0,16608.0,2.52513825]
[1672598291194,0.61647878,16610.0,16608.0,2.52513825]
[1672598291699,0.620876,16609.0,16608.0,2.52513825]
[1672598291944,0.61647878,16610.0,16608.0,2.52513825]
[1672598292453,0.61007096,16611.0,16609.0,0.50565904]
[1672598292702,0.61007096,16611.0,16609.0,1.80773504]
[1672598292912,0.54238181,16610.0,16609.0,1.80773504]
[1672598300191,0.54238181,16610.0,16609.0,1.10773504]
[1672598300442,0.54238181,16610.0,16609.0,1.70981804]
[1672598301181,0.54238181,16610.0,16609.0,2.40981804]
[1672598307145,0.54238181,16610.0,16609.0,1.70981804]
[1672598307641,0.45168526,16610.0,16609.0,3.1271995]
[1672598307883,0.45168526,16610.0,16609.0,3.7480755]
[1672598308651,0.81294844,16610.0,16609.0,3.7480755]
[1672598309148,0.81294844,16610.0,16609.0,3.8260755]
[1672598310157,0.81294844,16610.0,16609.0,3.84434645]
[1672598311654,0.81294844,16610.0,16609.0,3.42696499]
[1672598312430,1.08381895,16610.0,16609.0,3.42696499]
[1672598312929,0.81294844,16610.0,16609.0,3.42696499]
[1672598314166,0.45168526,16610.0,16609.0,3.42696499]
[1672598314670,0.81279356,16610.0,16609.0,3.42696499]
[1672598315419,1.08360609,16610.0,16609.0,2.72696499]
[1672598315674,0.81279356,16610.0,16609.0,2.10608899]
[1672598315918,1.08360571,16610.0,16609.0,2.10608899]
[1672598316171,0.81279356,16610.0,16609.0,2.10608899]
[1672598316426,1.08360119,16610.0,16609.0,2.80608899]
[1672598316665,0.63191593,16610.0,16609.0,2.80608899]
[1672598316916,0.63191593,16610.0,16609.0,3.42696499]
[1672598322342,0.63191593,16610.0,16609.0,2.72696499]
[1672598322550,0.63191593,16610.0,16609.0,2.10608899]
[1672598323264,0.63191593,16610.0,16609.0,2.80608899]
[1672598324268,1.08356741,16610.0,16609.0,2.80608899]
[1672598324481,0.81279356,16610.0,16609.0,2.80608899]
[1672598328190,0.81279356,16610.0,16609.0,2.50608899]
[1672598328755,0.45168526,16610.0,16609.0,2.80608899]
[1672598329253,0.81284033,16610.0,16609.0,2.80608899]
[1672598330257,0.81284033,16610.0,16609.0,2.80602887]
[1672598330473,0.45168526,16610.0,16609.0,2.80602887]
[1672598334770,0.45168526,16610.0,16609.0,2.10602887]
[1672598335535,0.45168526,16610.0,16609.0,2.80602887]
[1672598340882,0.54798262,16611.0,16609.0,2.80602887]
[1672598341430,0.45171147,16610.0,16609.0,2.80602887]
[1672598341661,0.45171147,16610.0,16609.0,2.10602887]
[1672598341662,0.45171154,16610.0,16609.0,2.10602887]
[1672598341901,0.45171154,16610.0,16609.0,2.02802887]
[1672598342619,0.45171154,16610.0,16609.0,2.72802887]
[1672598342878,0.45171154,16610.0,16609.0,2.80602887]
[1672598343624,0.54798262,16611.0,16609.0,2.80602887]
[1672598344635,0.54798262,16611.0,16609.0,2.72802887]
[1672598345097,0.45183055,16610.0,16609.0,2.72802887]
[1672598346113,0.45183989,16610.0,16609.0,2.72802887]
[1672598346364,0.54798262,16611.0,16609.0,2.80602887]
[1672598347590,0.54798262,16611.0,16609.0,2.72802887]
[1672598348093,0.54798262,16611.0,16610.0,0.5]
[1672598348573,0.54798262,16611.0,16610.0,1.102046]
[1672598349308,0.44798262,16611.0,16610.0,0.602046]
[1672598349567,0.44798262,16611.0,16610.0,1.302046]
[1672598354341,0.61007096,16612.0,16610.0,1.302046]
[1672598354857,0.620876,16611.0,16610.0,1.302046]
[1672598355115,1.0740589,16612.0,16610.0,1.302046]
[1672598355363,0.61007096,16612.0,16610.0,1.302046]
[1672598355642,0.620876,16611.0,16610.0,0.602046]
[1672598356390,1.0740589,16612.0,16610.0,0.602046]
[1672598356656,0.620876,16611.0,16610.0,1.302046]
[1672598356878,1.0740589,16612.0,16610.0,1.302046]
[1672598357121,0.61007096,16612.0,16610.0,1.302046]
[1672598357383,0.61007096,16612.0,16610.0,0.7]
[1672598357636,0.620876,16611.0,16610.0,0.7]
[1672598357870,1.0740589,16612.0,16610.0,0.7]
[1672598358136,0.61007096,16612.0,16610.0,1.302046]
[1672598361859,0.54233549,16611.0,16610.0,1.302046]
[1672598362350,1.0740589,16612.0,16610.0,1.302046]
[1672598362598,0.61007096,16612.0,16610.0,0.602046]
[1672598363561,0.61007096,16612.0,16610.0,1.302046]
[1672598365649,0.54235159,16611.0,16610.0,1.302046]
[1672598366929,1.0740589,16612.0,16610.0,1.302046]
[1672598367173,0.61007096,16612.0,16610.0,1.302046]
[1672598368165,1.0740589,16612.0,16610.0,1.302046]
[1672598368652,0.61007096,16612.0,16610.0,1.302046]
[1672598369639,0.61007096,16612.0,16610.0,0.602046]
[1672598369894,0.620876,16611.0,16610.0,0.602046]
[1672598370396,0.149108,16611.0,16610.0,0.602046]
[1672598370646,1.0740589,16612.0,16610.0,0.602046]
[1672598370647,1.0740589,16612.0,16610.0,1.302046]
[1672598370904,0.61007096,16612.0,16610.0,1.302046]
[1672598371906,0.620876,16611.0,16610.0,1.302046]
[1672598372160,1.0740589,16612.0,16610.0,1.302046]
[1672598372402,0.61007096,16612.0,16610.0,1.302046]
[1672598372906,0.61007096,16612.0,16610.0,1.30195974]
[1672598373891,0.54229065,16611.0,16610.0,1.30195974]
[1672598374891,0.54229065,16611.0,16610.0,1.90400574]
[1672598376618,0.54229065,16611.0,16610.0,1.20400574]
[1672598376830,0.54229065,16611.0,16610.0,1.90400574]
[1672598381761,0.54229065,16611.0,16610.0,2.20400574]
[1672598382729,0.54229065,16611.0,16610.0,1.50400574]
[1672598383694,0.54229065,16611.0,16610.0,2.20400574]
[1672598388368,0.54229065,16611.0,16610.0,1.90400574]
[1672598389812,0.54229065,16611.0,16610.0,1.20400574]
[1672598390030,0.54229065,16611.0,16610.0,1.50400574]
[1672598390752,0.54229065,16611.0,16610.0,2.20400574]
[1672598394331,0.54229065,16612.0,16610.0,2.20400574]
[1672598395033,0.54229065,16612.0,16610.0,2.20390686]
[1672598401701,0.54229065,16612.0,16610.0,1.50390686]
[1672598402964,0.54229065,16612.0,16610.0,2.20390686]
[1672598403783,0.54229065,16612.0,16610.0,1.90390686]
[1672598404008,0.54229065,16611.0,16610.0,1.90390686]
[1672598410964,0.54229065,16611.0,16610.0,1.20390686]
[1672598411741,0.54229065,16611.0,16610.0,1.90390686]
[1672598413752,0.54229065,16611.0,16610.0,1.89890686]
[1672598420704,0.54229065,16611.0,16610.0,1.19890686]
[1672598421684,0.54229065,16611.0,16610.0,1.89890686]
[1672598427609,0.54229065,16611.0,16610.0,1.19890686]
[1672598428775,0.54229065,16611.0,16610.0,1.89890686]
[1672598434795,0.54229065,16611.0,16610.0,1.19890686]
[1672598435746,0.54229065,16611.0,16610.0,1.89890686]
[1672598436000,0.54229065,16611.0,16610.0,1.89882961]
[1672598438422,0.54229065,16611.0,16610.0,2.51970561]
[1672598439152,0.54229065,16611.0,16610.0,1.89882961]
[1672598448606,0.54229065,16611.0,16610.0,1.19882961]
[1672598449902,0.54229065,16611.0,16610.0,1.89882961]
[1672598451875,0.54218365,16611.0,16610.0,1.89882961]
[1672598454349,0.54218365,16611.0,16610.0,2.51970561]
[1672598455840,0.54218365,16611.0,16610.0,1.81970561]
[1672598456078,0.54218365,16611.0,16610.0,1.19882961]
[1672598456810,0.54218365,16611.0,16610.0,1.89882961]
[1672598457062,0.54218365,16611.0,16610.0,2.51970561]
[1672598462141,0.54218365,16611.0,16610.0,1.89882961]
[1672598462651,0.54218365,16611.0,16610.0,1.19882961]
[1672598463672,0.54218365,16611.0,16610.0,1.89882961]
[1672598464359,0.54218365,16611.0,16610.0,2.51970561]
[1672598465354,0.54218365,16611.0,16610.0,1.89882961]
[1672598473360,0.54218365,16611.0,16610.0,1.89871446]
[1672598473604,0.54218365,16611.0,16610.0,1.19871446]
[1672598474106,1.16305965,16611.0,16610.0,1.19871446]
[1672598474346,0.54218365,16611.0,16610.0,1.19871446]
[1672598474599,1.16305965,16611.0,16610.0,1.89871446]
[1672598474851,0.54218365,16611.0,16610.0,1.89871446]
[1672598480433,0.54218365,16611.0,16610.0,1.19871446]
[1672598481463,0.54218365,16611.0,16610.0,1.89871446]
[1672598481713,0.54218365,16611.0,16610.0,2.19871446]
[1672598481963,0.54218365,16611.0,16610.0,3.30825653]
[1672598482183,0.54218365,16612.0,16610.0,3.30825653]
[1672598482456,0.54218365,16612.0,16611.0,0.412532]
[1672598482697,0.54218365,16612.0,16611.0,2.40402]
[1672598485887,0.54218365,16612.0,16611.0,2.70402]
[1672598486135,0.54218365,16612.0,16611.0,2.40402]
[1672598487983,0.54218365,16612.0,16611.0,2.70402]
[1672598488494,0.54218365,16612.0,16611.0,3.324896]
[1672598490770,0.54218365,16613.0,16611.0,2.824896]
[1672598491049,0.54218365,16613.0,16611.0,2.20402]
[1672598491776,0.54218365,16612.0,16611.0,2.20402]
[1672598492024,0.54218365,16613.0,16611.0,2.21102]
[1672598492262,0.54218365,16613.0,16611.0,2.20402]
[1672598492528,0.54218365,16612.0,16611.0,2.21102]
[1672598492786,0.54218365,16613.0,16611.0,2.20402]
[1672598493537,0.54218365,16613.0,16611.0,2.21102]
[1672598494785,0.45158486,16612.0,16611.0,2.21102]
[1672598495782,0.45158486,16612.0,16611.0,2.20390796]
[1672598496038,0.45158486,16612.0,16611.0,2.21090796]
[1672598496289,0.45158486,16612.0,16611.0,2.20390796]
[1672598498028,0.33958486,16612.0,16611.0,2.20390796]
[1672598499543,0.33958486,16612.0,16611.0,2.28190796]
[1672598500280,0.33958486,16612.0,16611.0,1.58202]
[1672598500778,0.33958486,16612.0,16611.0,1.28202]
[1672598501016,0.54218365,16613.0,16611.0,1.28202]
[1672598501272,0.54218365,16613.0,16611.0,1.98202]
[1672598501753,0.54218365,16613.0,16611.0,1.90402]
[1672598506217,0.620876,16612.0,16611.0,1.90402]
[1672598506749,0.54218365,16613.0,16611.0,1.90402]
[1672598507771,0.54218365,16613.0,16611.0,1.98202]
[1672598507995,0.54218365,16613.0,16611.0,1.90402]
[1672598508852,0.45149543,16612.0,16611.0,1.20402]
[1672598509097,0.45149543,16612.0,16611.0,1.50402]
[1672598509850,0.45149543,16612.0,16611.0,2.20402]
[1672598510349,0.45149543,16612.0,16611.0,2.28202]
[1672598510617,0.45149543,16612.0,16611.0,2.20402]
[1672598510853,0.45149543,16612.0,16611.0,2.28202]
[1672598513086,0.54218365,16613.0,16611.0,2.28202]
[1672598513335,0.45154415,16612.0,16611.0,2.28202]
[1672598515787,0.45154415,16612.0,16611.0,1.58202]
[1672598516521,0.45158271,16612.0,16611.0,1.58202]
[1672598516776,0.54218365,16613.0,16611.0,2.28202]
[1672598517020,0.54218365,16613.0,16612.0,0.5]
[1672598517244,0.54218365,16613.0,16612.0,1.203948]
[1672598518026,0.54218365,16613.0,16612.0,1.903948]
[1672598519825,1.57286196,16614.0,16612.0,1.903948]
[1672598520036,1.11007096,16614.0,16612.0,1.903948]
[1672598522742,1.11007096,16614.0,16612.0,1.203948]
[1672598522995,0.61007096,16614.0,16612.0,1.20388336]
[1672598523243,0.54223064,16613.0,16612.0,1.20388336]
[1672598523999,0.54223064,16613.0,16612.0,1.90388336]
[1672598524247,0.54223064,16613.0,16612.0,2.52475936]
[1672598527182,0.54223064,16613.0,16612.0,1.90388336]
[1672598529353,0.54223064,16613.0,16612.0,2.52475936]
[1672598530385,0.54223064,16613.0,16612.0,1.90388336]
[1672598530633,0.54223064,16613.0,16612.0,2.52475936]
[1672598530882,0.54223064,16613.0,16612.0,1.90388336]
[1672598533582,0.54223064,16613.0,16612.0,2.52475936]
[1672598534317,0.54223064,16613.0,16612.0,1.90388336]
[1672598535298,1.07286196,16614.0,16612.0,1.90388336]
[1672598535541,0.61007096,16614.0,16612.0,1.90388336]
[1672598537310,0.61007096,16613.0,16612.0,1.90388336]
[1672598538871,1.57286196,16614.0,16612.0,1.90388336]
[1672598539121,0.61007096,16614.0,16612.0,1.90388336]
[1672598539634,0.61007096,16613.0,16612.0,1.90388336]
[1672598541619,1.23094696,16613.0,16612.0,1.90388336]
[1672598542619,0.61007096,16613.0,16612.0,1.90388336]
[1672598543131,1.57286196,16614.0,16612.0,1.90388336]
[1672598543384,0.61007096,16613.0,16612.0,1.90388336]
[1672598543630,1.57286196,16614.0,16612.0,1.90388336]
[1672598543875,1.11007096,16614.0,16612.0,1.90388336]